[Event "Titled Tuesday Blitz November 14 Early 2023"]
[White "Kubicka, Anna"]
[Black "Garrido, Denis"]
[WhiteFideId "1152254"]
[BlackFideId "601217"]
[WhiteElo "2514"]
[BlackElo "2343"]
[Result "0-1"]
[Round "4"]
[TimeControl "180+1"]
[Date "2023.11.14"]
[WhiteClock "0:00:00"]
[BlackClock "0:01:31"]
[Board "163"]

1. e4 {[%clk 0:03:00]}  c6 {[%clk 0:02:58]} 2. d4 {[%clk 0:03:00]}  d5 {[%clk 0:02:59]} 3. exd5 {[%clk 0:03:00]}  cxd5 {[%clk 0:02:59]} 4. Nf3 {[%clk 0:03:01]}  Nc6 {[%clk 0:02:59]} 5. Ne5 {[%clk 0:03:01]}  a6 {[%clk 0:02:59]} 6. Nxc6 {[%clk 0:02:57]}  bxc6 {[%clk 0:02:58]} 7. Bd3 {[%clk 0:02:57]}  Nf6 {[%clk 0:02:37]} 8. Bg5 {[%clk 0:02:53]}  Bg4 {[%clk 0:02:35]} 9. f3 {[%clk 0:02:45]}  Bh5 {[%clk 0:02:35]} 10. Bxf6 {[%clk 0:02:45]}  gxf6 {[%clk 0:02:31]} 11. Nc3 {[%clk 0:02:29]}  e6 {[%clk 0:02:31]} 12. Ne2 {[%clk 0:02:28]}  Bd6 {[%clk 0:02:30]} 13. Qd2 {[%clk 0:02:27]}  Qc7 {[%clk 0:02:28]} 14. O-O-O {[%clk 0:02:16]}  Bg6 {[%clk 0:02:27]} 15. h4 {[%clk 0:02:12]}  a5 {[%clk 0:02:25]} 16. h5 {[%clk 0:02:12]}  Bxd3 {[%clk 0:02:24]} 17. Qxd3 {[%clk 0:02:12]}  a4 {[%clk 0:02:23]} 18. c3 {[%clk 0:01:36]}  c5 {[%clk 0:02:16]} 19. dxc5 {[%clk 0:01:34]}  Qxc5 {[%clk 0:02:16]} 20. Qd4 {[%clk 0:01:18]}  Qxd4 {[%clk 0:02:13]} 21. Nxd4 {[%clk 0:01:19]}  Ke7 {[%clk 0:02:07]} 22. Rhe1 {[%clk 0:01:17]}  Rhc8 {[%clk 0:02:02]} 23. Nf5+ {[%clk 0:01:16]}  Kd7 {[%clk 0:02:01]} 24. Nxd6 {[%clk 0:01:16]}  Kxd6 {[%clk 0:02:02]} 25. a3 {[%clk 0:01:07]}  Rc4 {[%clk 0:02:01]} 26. Rd4 {[%clk 0:00:52]}  Rxd4 {[%clk 0:01:51]} 27. cxd4 {[%clk 0:00:51]}  Rc8+ {[%clk 0:01:52]} 28. Kd2 {[%clk 0:00:52]}  Rc4 {[%clk 0:01:53]} 29. Kd3 {[%clk 0:00:51]}  e5 {[%clk 0:01:52]} 30. dxe5+ {[%clk 0:00:47]}  fxe5 {[%clk 0:01:53]} 31. Re2 {[%clk 0:00:45]}  f5 {[%clk 0:01:51]} 32. g3 {[%clk 0:00:28]}  e4+ {[%clk 0:01:50]} 33. fxe4 {[%clk 0:00:22]}  fxe4+ {[%clk 0:01:50]} 34. Ke3 {[%clk 0:00:19]}  Ke5 {[%clk 0:01:50]} 35. Kd2 {[%clk 0:00:09]}  d4 {[%clk 0:01:49]} 36. g4 {[%clk 0:00:05]}  d3 {[%clk 0:01:46]} 37. Rf2 {[%clk 0:00:03]}  Kd4 {[%clk 0:01:31]} 38. Rf4 {[%clk 0:00:02]}  Rc2+ {[%clk 0:01:31]} 39. Kd1 {[%clk 0:00:00]}  Rxb2 {[%clk 0:01:31]} 0-1


[Site "https://www.chess.com"]

[Event "Titled Tuesday Blitz November 14 Early 2023"]
[White "Fernandez Siles, Luis"]
[Black "Cristi_Coca"]
[WhiteFideId "2209420"]
[WhiteElo "2342"]
[BlackElo "2513"]
[Result "0-1"]
[Round "4"]
[TimeControl "180+1"]
[Date "2023.11.14"]
[WhiteClock "0:00:22"]
[BlackClock "0:01:37"]
[Board "164"]

1. e4 {[%clk 0:03:00]}  c5 {[%clk 0:02:58]} 2. Nf3 {[%clk 0:02:59]}  e6 {[%clk 0:02:57]} 3. c3 {[%clk 0:02:59]}  d5 {[%clk 0:02:54]} 4. exd5 {[%clk 0:02:56]}  exd5 {[%clk 0:02:54]} 5. d4 {[%clk 0:02:56]}  Nc6 {[%clk 0:02:53]} 6. Be3 {[%clk 0:02:56]}  cxd4 {[%clk 0:02:48]} 7. Nxd4 {[%clk 0:02:54]}  Nf6 {[%clk 0:02:48]} 8. Bb5 {[%clk 0:02:51]}  Bd7 {[%clk 0:02:45]} 9. Qa4 {[%clk 0:02:48]}  Nxd4 {[%clk 0:02:29]} 10. Bxd7+ {[%clk 0:02:47]}  Qxd7 {[%clk 0:02:28]} 11. Qxd7+ {[%clk 0:02:46]}  Kxd7 {[%clk 0:02:26]} 12. Bxd4 {[%clk 0:02:45]}  Ne4 {[%clk 0:02:24]} 13. O-O {[%clk 0:02:40]}  Bc5 {[%clk 0:02:22]} 14. Bxc5 {[%clk 0:02:36]}  Nxc5 {[%clk 0:02:20]} 15. Nd2 {[%clk 0:02:34]}  Rhe8 {[%clk 0:02:14]} 16. Rfd1 {[%clk 0:02:20]}  Re2 {[%clk 0:02:11]} 17. b4 {[%clk 0:02:03]}  Na4 {[%clk 0:02:05]} 18. Rac1 {[%clk 0:01:42]}  Nb2 {[%clk 0:02:00]} 19. Kf1 {[%clk 0:01:38]}  Rae8 {[%clk 0:01:51]} 20. Re1 {[%clk 0:00:58]}  Rxd2 {[%clk 0:01:48]} 21. Rxe8 {[%clk 0:00:58]}  Kxe8 {[%clk 0:01:48]} 22. Ke1 {[%clk 0:00:59]}  Rd3 {[%clk 0:01:45]} 23. Ke2 {[%clk 0:00:57]}  d4 {[%clk 0:01:37]} 24. c4 {[%clk 0:00:22]}  Ra3 {[%clk 0:01:37]} 0-1


[Site "https://www.chess.com"]

[Event "Titled Tuesday Blitz November 14 Early 2023"]
[White "Ramadoss, Ashokkumar"]
[Black "Grossboss19"]
[WhiteFideId "5040990"]
[WhiteElo "2338"]
[BlackElo "2509"]
[Result "0-1"]
[Round "4"]
[TimeControl "180+1"]
[Date "2023.11.14"]
[WhiteClock "0:00:09"]
[BlackClock "0:00:11"]
[Board "167"]

1. Nf3 {[%clk 0:03:00]}  d5 {[%clk 0:02:57]} 2. c4 {[%clk 0:03:00]}  c6 {[%clk 0:02:49]} 3. Qc2 {[%clk 0:02:58]}  Nf6 {[%clk 0:02:44]} 4. d4 {[%clk 0:02:54]}  g6 {[%clk 0:02:43]} 5. e3 {[%clk 0:02:53]}  Bf5 {[%clk 0:02:43]} 6. Bd3 {[%clk 0:02:54]}  Bxd3 {[%clk 0:02:42]} 7. Qxd3 {[%clk 0:02:54]}  Bg7 {[%clk 0:02:43]} 8. O-O {[%clk 0:02:54]}  O-O {[%clk 0:02:43]} 9. Nc3 {[%clk 0:02:55]}  Nbd7 {[%clk 0:02:43]} 10. e4 {[%clk 0:02:47]}  dxe4 {[%clk 0:02:41]} 11. Nxe4 {[%clk 0:02:48]}  Nxe4 {[%clk 0:02:38]} 12. Qxe4 {[%clk 0:02:49]}  Re8 {[%clk 0:02:39]} 13. Rd1 {[%clk 0:02:47]}  Nf6 {[%clk 0:02:22]} 14. Qe2 {[%clk 0:02:47]}  Qd7 {[%clk 0:02:15]} 15. b3 {[%clk 0:02:39]}  Rad8 {[%clk 0:02:13]} 16. Bb2 {[%clk 0:02:39]}  Qf5 {[%clk 0:02:08]} 17. h3 {[%clk 0:02:32]}  Qe4 {[%clk 0:02:02]} 18. Re1 {[%clk 0:02:31]}  Qxe2 {[%clk 0:01:56]} 19. Rxe2 {[%clk 0:02:32]}  e6 {[%clk 0:01:56]} 20. g3 {[%clk 0:02:22]}  Nd7 {[%clk 0:01:52]} 21. Kg2 {[%clk 0:02:21]}  Nb6 {[%clk 0:01:47]} 22. a4 {[%clk 0:02:07]}  Na8 {[%clk 0:01:43]} 23. h4 {[%clk 0:02:01]}  Nc7 {[%clk 0:01:39]} 24. h5 {[%clk 0:01:59]}  Na6 {[%clk 0:01:38]} 25. a5 {[%clk 0:01:40]}  Nb4 {[%clk 0:01:24]} 26. hxg6 {[%clk 0:01:24]}  hxg6 {[%clk 0:01:19]} 27. Bc3 {[%clk 0:01:18]}  c5 {[%clk 0:01:09]} 28. Bxb4 {[%clk 0:01:18]}  cxb4 {[%clk 0:01:08]} 29. Ra4 {[%clk 0:00:41]}  Bxd4 {[%clk 0:00:44]} 30. Rxb4 {[%clk 0:00:40]}  Re7 {[%clk 0:00:44]} 31. Rd2 {[%clk 0:00:38]}  e5 {[%clk 0:00:41]} 32. Nxd4 {[%clk 0:00:26]}  exd4 {[%clk 0:00:36]} 33. c5 {[%clk 0:00:24]}  d3 {[%clk 0:00:33]} 34. Rc4 {[%clk 0:00:18]}  Re2 {[%clk 0:00:28]} 35. Rd1 {[%clk 0:00:15]}  d2 {[%clk 0:00:24]} 36. Ra4 {[%clk 0:00:16]}  Re1 {[%clk 0:00:19]} 37. Raa1 {[%clk 0:00:16]}  Rxd1 {[%clk 0:00:19]} 38. Rxd1 {[%clk 0:00:16]}  Kf8 {[%clk 0:00:19]} 39. Kf3 {[%clk 0:00:16]}  Rd3+ {[%clk 0:00:19]} 40. Ke2 {[%clk 0:00:16]}  Rxb3 {[%clk 0:00:20]} 41. Rxd2 {[%clk 0:00:17]}  Rb5 {[%clk 0:00:20]} 42. Rd7 {[%clk 0:00:16]}  Rxc5 {[%clk 0:00:20]} 43. Rxb7 {[%clk 0:00:16]}  Rxa5 {[%clk 0:00:20]} 44. Kf3 {[%clk 0:00:17]}  Ra4 {[%clk 0:00:21]} 45. g4 {[%clk 0:00:17]}  g5 {[%clk 0:00:20]} 46. Kg3 {[%clk 0:00:17]}  Ra3+ {[%clk 0:00:20]} 47. f3 {[%clk 0:00:18]}  Kg7 {[%clk 0:00:21]} 48. Rb5 {[%clk 0:00:18]}  Kg6 {[%clk 0:00:20]} 49. Rb7 {[%clk 0:00:19]}  a5 {[%clk 0:00:20]} 50. Ra7 {[%clk 0:00:19]}  Kf6 {[%clk 0:00:19]} 51. Kg2 {[%clk 0:00:20]}  Ra2+ {[%clk 0:00:19]} 52. Kg3 {[%clk 0:00:20]}  a4 {[%clk 0:00:20]} 53. Ra5 {[%clk 0:00:20]}  a3 {[%clk 0:00:18]} 54. Rf5+ {[%clk 0:00:21]}  Kg6 {[%clk 0:00:18]} 55. Ra5 {[%clk 0:00:22]}  Ra1 {[%clk 0:00:18]} 56. Kg2 {[%clk 0:00:22]}  a2 {[%clk 0:00:18]} 57. Ra6+ {[%clk 0:00:23]}  Kg7 {[%clk 0:00:18]} 58. Ra7 {[%clk 0:00:23]}  Kf6 {[%clk 0:00:19]} 59. Ra6+ {[%clk 0:00:23]}  Ke5 {[%clk 0:00:19]} 60. Ra8 {[%clk 0:00:23]}  Kf4 {[%clk 0:00:17]} 61. Ra4+ {[%clk 0:00:23]}  Ke3 {[%clk 0:00:17]} 62. Ra3+ {[%clk 0:00:24]}  Kd2 {[%clk 0:00:14]} 63. Ra8 {[%clk 0:00:24]}  Ke3 {[%clk 0:00:12]} 64. Ra3+ {[%clk 0:00:24]}  Kd4 {[%clk 0:00:12]} 65. Ra4+ {[%clk 0:00:24]}  Kc5 {[%clk 0:00:12]} 66. Ra5+ {[%clk 0:00:25]}  Kb4 {[%clk 0:00:12]} 67. Ra8 {[%clk 0:00:25]}  Kc4 {[%clk 0:00:12]} 68. Rc8+ {[%clk 0:00:25]}  Kb5 {[%clk 0:00:12]} 69. Rb8+ {[%clk 0:00:26]}  Kc6 {[%clk 0:00:12]} 70. Ra8 {[%clk 0:00:26]}  Kb7 {[%clk 0:00:12]} 71. Ra3 {[%clk 0:00:27]}  Kb6 {[%clk 0:00:13]} 72. Ra8 {[%clk 0:00:27]}  Kc6 {[%clk 0:00:12]} 73. Ra3 {[%clk 0:00:26]}  Kd6 {[%clk 0:00:13]} 74. Ra7 {[%clk 0:00:27]}  Ke5 {[%clk 0:00:13]} 75. Ra5+ {[%clk 0:00:26]}  Kf6 {[%clk 0:00:14]} 76. Ra6+ {[%clk 0:00:26]}  Kg7 {[%clk 0:00:13]} 77. Ra7 {[%clk 0:00:27]}  Kg6 {[%clk 0:00:13]} 78. Ra6+ {[%clk 0:00:27]}  f6 {[%clk 0:00:14]} 79. Ra7 {[%clk 0:00:25]}  f5 {[%clk 0:00:14]} 80. Ra6+ {[%clk 0:00:24]}  Kf7 {[%clk 0:00:14]} 81. gxf5 {[%clk 0:00:25]}  Kg7 {[%clk 0:00:14]} 82. Kh2 {[%clk 0:00:23]}  Kf7 {[%clk 0:00:13]} 83. Kg2 {[%clk 0:00:23]}  Ke7 {[%clk 0:00:14]} 84. Ra7+ {[%clk 0:00:20]}  Kf6 {[%clk 0:00:14]} 85. Ra6+ {[%clk 0:00:20]}  Kxf5 {[%clk 0:00:14]} 86. Ra5+ {[%clk 0:00:21]}  Kg6 {[%clk 0:00:14]} 87. Ra4 {[%clk 0:00:20]}  Kh5 {[%clk 0:00:14]} 88. Ra5 {[%clk 0:00:20]}  Kh6 {[%clk 0:00:13]} 89. Ra6+ {[%clk 0:00:20]}  Kg7 {[%clk 0:00:13]} 90. Ra7+ {[%clk 0:00:21]}  Kf6 {[%clk 0:00:14]} 91. Ra6+ {[%clk 0:00:21]}  Ke5 {[%clk 0:00:15]} 92. Ra5+ {[%clk 0:00:21]}  Kf4 {[%clk 0:00:15]} 93. Ra4+ {[%clk 0:00:21]}  Ke3 {[%clk 0:00:16]} 94. Ra3+ {[%clk 0:00:21]}  Ke2 {[%clk 0:00:16]} 95. Ra6 {[%clk 0:00:20]}  Kd3 {[%clk 0:00:13]} 96. Ra3+ {[%clk 0:00:20]}  Kc4 {[%clk 0:00:12]} 97. Ra8 {[%clk 0:00:20]}  Kb3 {[%clk 0:00:12]} 98. Rb8+ {[%clk 0:00:20]}  Kc3 {[%clk 0:00:12]} 99. Rc8+ {[%clk 0:00:21]}  Kd4 {[%clk 0:00:13]} 100. Ra8 {[%clk 0:00:21]}  Kc4 {[%clk 0:00:13]} 101. Rc8+ {[%clk 0:00:21]}  Kd4 {[%clk 0:00:13]} 102. Ra8 {[%clk 0:00:21]}  Kc5 {[%clk 0:00:14]} 103. Ra7 {[%clk 0:00:21]}  Kb5 {[%clk 0:00:12]} 104. Ra8 {[%clk 0:00:21]}  Kc5 {[%clk 0:00:12]} 105. Ra7 {[%clk 0:00:21]}  Kc4 {[%clk 0:00:11]} 106. Ra4+ {[%clk 0:00:21]}  Kb3 {[%clk 0:00:12]} 107. Ra8 {[%clk 0:00:22]}  Rb1 {[%clk 0:00:11]} 108. Kg3 {[%clk 0:00:09]}  a1=Q {[%clk 0:00:11]} 0-1


[Site "https://www.chess.com"]

[Event "Titled Tuesday Blitz November 14 Early 2023"]
[White "Lopez Del Alamo, Antonio"]
[Black "Novik, Maxim"]
[WhiteFideId "2227339"]
[BlackFideId "4102924"]
[WhiteElo "2329"]
[BlackElo "2508"]
[Result "0-1"]
[Round "4"]
[TimeControl "180+1"]
[Date "2023.11.14"]
[WhiteClock "0:00:10"]
[BlackClock "0:01:11"]
[Board "168"]

1. e4 {[%clk 0:02:55]}  c6 {[%clk 0:02:38]} 2. d4 {[%clk 0:02:53]}  d5 {[%clk 0:02:38]} 3. e5 {[%clk 0:02:48]}  Bf5 {[%clk 0:02:38]} 4. h4 {[%clk 0:02:41]}  Qb6 {[%clk 0:02:37]} 5. g4 {[%clk 0:02:34]}  Bd7 {[%clk 0:02:36]} 6. c4 {[%clk 0:02:16]}  dxc4 {[%clk 0:02:31]} 7. Nc3 {[%clk 0:02:15]}  Be6 {[%clk 0:02:25]} 8. f4 {[%clk 0:02:13]}  Bd5 {[%clk 0:02:24]} 9. Nxd5 {[%clk 0:02:05]}  cxd5 {[%clk 0:02:24]} 10. f5 {[%clk 0:02:06]}  Nc6 {[%clk 0:02:23]} 11. Nf3 {[%clk 0:02:04]}  e6 {[%clk 0:02:23]} 12. Bh3 {[%clk 0:01:45]}  Bb4+ {[%clk 0:02:07]} 13. Kf1 {[%clk 0:01:41]}  Nge7 {[%clk 0:02:03]} 14. Be3 {[%clk 0:01:39]}  exf5 {[%clk 0:01:49]} 15. gxf5 {[%clk 0:01:38]}  f6 {[%clk 0:01:49]} 16. Qe2 {[%clk 0:01:31]}  O-O-O {[%clk 0:01:48]} 17. Rd1 {[%clk 0:01:28]}  Kb8 {[%clk 0:01:48]} 18. Kg2 {[%clk 0:01:21]}  Ka8 {[%clk 0:01:35]} 19. a3 {[%clk 0:01:11]}  Ba5 {[%clk 0:01:35]} 20. Rb1 {[%clk 0:01:00]}  Rhf8 {[%clk 0:01:34]} 21. e6 {[%clk 0:00:59]}  g6 {[%clk 0:01:32]} 22. Qc2 {[%clk 0:00:52]}  gxf5 {[%clk 0:01:31]} 23. b4 {[%clk 0:00:50]}  cxb3 {[%clk 0:01:27]} 24. Rxb3 {[%clk 0:00:50]}  Qc7 {[%clk 0:01:27]} 25. Rhb1 {[%clk 0:00:47]}  Rg8+ {[%clk 0:01:27]} 26. Kh1 {[%clk 0:00:44]}  Qg3 {[%clk 0:01:26]} 27. Qg2 {[%clk 0:00:42]}  Bb6 {[%clk 0:01:19]} 28. Qxg3 {[%clk 0:00:25]}  Rxg3 {[%clk 0:01:18]} 29. Bf4 {[%clk 0:00:25]}  Rxh3+ {[%clk 0:01:17]} 30. Kg2 {[%clk 0:00:26]}  Rxf3 {[%clk 0:01:16]} 31. Kxf3 {[%clk 0:00:26]}  Nxd4+ {[%clk 0:01:16]} 32. Kg2 {[%clk 0:00:25]}  Nxb3 {[%clk 0:01:16]} 33. Rxb3 {[%clk 0:00:26]}  d4 {[%clk 0:01:16]} 34. Rg3 {[%clk 0:00:17]}  d3 {[%clk 0:01:14]} 35. Bd2 {[%clk 0:00:18]}  Bc5 {[%clk 0:01:14]} 36. Rg7 {[%clk 0:00:17]}  Bxa3 {[%clk 0:01:13]} 37. h5 {[%clk 0:00:17]}  a5 {[%clk 0:01:13]} 38. h6 {[%clk 0:00:15]}  Bb4 {[%clk 0:01:13]} 39. Bxb4 {[%clk 0:00:10]}  axb4 {[%clk 0:01:13]} 40. Rxe7 {[%clk 0:00:11]}  d2 {[%clk 0:01:14]} 41. Rd7 {[%clk 0:00:09]}  Rxd7 {[%clk 0:01:11]} 42. exd7 {[%clk 0:00:10]} 0-1


[Site "https://www.chess.com"]

[Event "Titled Tuesday Blitz November 14 Early 2023"]
[White "Shuvalov, Evgenij"]
[Black "Mazzilli, Piero"]
[WhiteFideId "4187237"]
[BlackFideId "807087"]
[WhiteElo "2503"]
[BlackElo "2324"]
[Result "1/2-1/2"]
[Round "4"]
[TimeControl "180+1"]
[Date "2023.11.14"]
[WhiteClock "0:00:28"]
[BlackClock "0:00:08"]
[Board "171"]

1. d4 {[%clk 0:02:37]}  d5 {[%clk 0:02:59]} 2. c4 {[%clk 0:02:37]}  e6 {[%clk 0:02:59]} 3. Nc3 {[%clk 0:02:37]}  Nf6 {[%clk 0:02:59]} 4. Nf3 {[%clk 0:02:36]}  Nbd7 {[%clk 0:02:56]} 5. Bf4 {[%clk 0:02:34]}  a6 {[%clk 0:02:53]} 6. c5 {[%clk 0:02:33]}  Be7 {[%clk 0:02:42]} 7. e3 {[%clk 0:02:32]}  O-O {[%clk 0:02:42]} 8. Bd3 {[%clk 0:02:30]}  c6 {[%clk 0:02:30]} 9. h3 {[%clk 0:02:25]}  Ne8 {[%clk 0:02:24]} 10. g4 {[%clk 0:02:17]}  b6 {[%clk 0:02:10]} 11. b4 {[%clk 0:02:16]}  a5 {[%clk 0:02:09]} 12. a3 {[%clk 0:02:16]}  Ba6 {[%clk 0:01:45]} 13. Bxa6 {[%clk 0:02:02]}  Rxa6 {[%clk 0:01:46]} 14. b5 {[%clk 0:02:01]}  cxb5 {[%clk 0:01:46]} 15. c6 {[%clk 0:02:00]}  Nb8 {[%clk 0:01:37]} 16. Nxb5 {[%clk 0:01:53]}  Nxc6 {[%clk 0:01:35]} 17. Qc2 {[%clk 0:01:49]}  Na7 {[%clk 0:01:19]} 18. Qd3 {[%clk 0:01:32]}  Nxb5 {[%clk 0:01:15]} 19. Qxb5 {[%clk 0:01:33]}  Ra7 {[%clk 0:01:15]} 20. O-O {[%clk 0:01:32]}  Bd6 {[%clk 0:01:07]} 21. Ne5 {[%clk 0:01:28]}  Bxe5 {[%clk 0:01:04]} 22. Bxe5 {[%clk 0:01:27]}  Nd6 {[%clk 0:01:04]} 23. Bxd6 {[%clk 0:01:23]}  Qxd6 {[%clk 0:01:05]} 24. Rfc1 {[%clk 0:01:21]}  Rc7 {[%clk 0:01:05]} 25. a4 {[%clk 0:01:09]}  Rfc8 {[%clk 0:01:00]} 26. Rxc7 {[%clk 0:01:06]}  Rxc7 {[%clk 0:01:00]} 27. Qe8+ {[%clk 0:01:05]}  Qf8 {[%clk 0:00:59]} 28. Qb5 {[%clk 0:01:05]}  Qd8 {[%clk 0:00:27]} 29. Rb1 {[%clk 0:00:59]}  g6 {[%clk 0:00:21]} 30. Kg2 {[%clk 0:00:54]}  Rc4 {[%clk 0:00:16]} 31. Qxb6 {[%clk 0:00:42]}  Qxb6 {[%clk 0:00:15]} 32. Rxb6 {[%clk 0:00:43]}  Rxa4 {[%clk 0:00:16]} 33. g5 {[%clk 0:00:41]}  Ra2 {[%clk 0:00:14]} 34. Ra6 {[%clk 0:00:41]}  a4 {[%clk 0:00:13]} 35. Ra8+ {[%clk 0:00:36]}  Kg7 {[%clk 0:00:13]} 36. h4 {[%clk 0:00:34]}  h6 {[%clk 0:00:12]} 37. Kg3 {[%clk 0:00:30]}  hxg5 {[%clk 0:00:12]} 38. hxg5 {[%clk 0:00:30]}  a3 {[%clk 0:00:13]} 39. Kg2 {[%clk 0:00:30]}  Ra1 {[%clk 0:00:12]} 40. Kh2 {[%clk 0:00:29]}  Kh7 {[%clk 0:00:11]} 41. Kg2 {[%clk 0:00:28]}  Kg7 {[%clk 0:00:11]} 42. Kh2 {[%clk 0:00:28]}  Rf1 {[%clk 0:00:08]} 43. Kg2 {[%clk 0:00:28]}  Ra1 {[%clk 0:00:08]} 1/2-1/2


[Site "https://www.chess.com"]

[Event "Titled Tuesday Blitz November 14 Early 2023"]
[White "Goswami, Vedant"]
[Black "Hajiyev, Kanan"]
[WhiteFideId "5003725"]
[BlackFideId "13404148"]
[WhiteElo "2318"]
[BlackElo "2496"]
[Result "1-0"]
[Round "4"]
[TimeControl "180+1"]
[Date "2023.11.14"]
[WhiteClock "0:00:16"]
[BlackClock "0:00:39"]
[Board "174"]

1. c3 {[%clk 0:03:00]}  c6 {[%clk 0:03:00]} 2. d4 {[%clk 0:03:00]}  d5 {[%clk 0:03:01]} 3. Bf4 {[%clk 0:02:59]}  Nf6 {[%clk 0:03:02]} 4. Nf3 {[%clk 0:02:59]}  Bf5 {[%clk 0:03:02]} 5. e3 {[%clk 0:02:58]}  e6 {[%clk 0:03:02]} 6. Nbd2 {[%clk 0:02:57]}  Bd6 {[%clk 0:03:03]} 7. Qb3 {[%clk 0:02:53]}  Bxf4 {[%clk 0:03:01]} 8. exf4 {[%clk 0:02:53]}  Qb6 {[%clk 0:03:01]} 9. Be2 {[%clk 0:02:49]}  O-O {[%clk 0:03:00]} 10. O-O {[%clk 0:02:46]}  Nbd7 {[%clk 0:03:01]} 11. Ne5 {[%clk 0:02:45]}  Qxb3 {[%clk 0:02:57]} 12. axb3 {[%clk 0:02:40]}  Rfd8 {[%clk 0:02:57]} 13. b4 {[%clk 0:02:37]}  a6 {[%clk 0:02:58]} 14. f3 {[%clk 0:02:33]}  Nxe5 {[%clk 0:02:56]} 15. fxe5 {[%clk 0:02:32]}  Nd7 {[%clk 0:02:57]} 16. Nb3 {[%clk 0:02:28]}  g5 {[%clk 0:02:48]} 17. g4 {[%clk 0:02:00]}  Bc2 {[%clk 0:02:47]} 18. Nc5 {[%clk 0:01:58]}  Nxc5 {[%clk 0:02:47]} 19. bxc5 {[%clk 0:01:58]}  f6 {[%clk 0:02:41]} 20. exf6 {[%clk 0:01:52]}  Kf7 {[%clk 0:02:41]} 21. f4 {[%clk 0:01:52]}  Kxf6 {[%clk 0:02:20]} 22. fxg5+ {[%clk 0:01:50]}  Kxg5 {[%clk 0:02:19]} 23. Rf7 {[%clk 0:01:50]}  Rab8 {[%clk 0:02:15]} 24. Raf1 {[%clk 0:01:44]}  Bg6 {[%clk 0:02:11]} 25. Rc7 {[%clk 0:01:31]}  Rdc8 {[%clk 0:02:08]} 26. Rxc8 {[%clk 0:01:23]}  Rxc8 {[%clk 0:02:09]} 27. Kg2 {[%clk 0:01:22]}  Kh4 {[%clk 0:02:07]} 28. b4 {[%clk 0:01:13]}  e5 {[%clk 0:02:04]} 29. Rf6 {[%clk 0:00:49]}  Re8 {[%clk 0:01:58]} 30. Bf3 {[%clk 0:00:45]}  e4 {[%clk 0:01:52]} 31. Be2 {[%clk 0:00:44]}  Kg5 {[%clk 0:01:40]} 32. Rd6 {[%clk 0:00:40]}  Kf4 {[%clk 0:01:34]} 33. Rd7 {[%clk 0:00:35]}  Ke3 {[%clk 0:01:31]} 34. Bf1 {[%clk 0:00:33]}  Rb8 {[%clk 0:01:27]} 35. h4 {[%clk 0:00:31]}  Kd2 {[%clk 0:01:05]} 36. h5 {[%clk 0:00:25]}  Be8 {[%clk 0:00:57]} 37. Rxh7 {[%clk 0:00:25]}  Kxc3 {[%clk 0:00:57]} 38. g5 {[%clk 0:00:23]}  Kxd4 {[%clk 0:00:46]} 39. g6 {[%clk 0:00:22]}  Bxg6 {[%clk 0:00:47]} 40. hxg6 {[%clk 0:00:22]}  Rg8 {[%clk 0:00:47]} 41. g7 {[%clk 0:00:21]}  Ke3 {[%clk 0:00:42]} 42. Kg3 {[%clk 0:00:18]}  Kd2 {[%clk 0:00:36]} 43. Kf4 {[%clk 0:00:17]}  e3 {[%clk 0:00:36]} 44. Ke5 {[%clk 0:00:16]}  e2 {[%clk 0:00:35]} 45. Bxe2 {[%clk 0:00:15]}  Kxe2 {[%clk 0:00:36]} 46. Kf6 {[%clk 0:00:15]}  d4 {[%clk 0:00:37]} 47. Kf7 {[%clk 0:00:15]}  Rd8 {[%clk 0:00:36]} 48. g8=Q {[%clk 0:00:14]}  Rxg8 {[%clk 0:00:35]} 49. Kxg8 {[%clk 0:00:14]}  d3 {[%clk 0:00:36]} 50. Rxb7 {[%clk 0:00:14]}  d2 {[%clk 0:00:37]} 51. Re7+ {[%clk 0:00:14]}  Kd3 {[%clk 0:00:37]} 52. Rd7+ {[%clk 0:00:14]}  Kc2 {[%clk 0:00:37]} 53. Kf7 {[%clk 0:00:14]}  d1=Q {[%clk 0:00:37]} 54. Rxd1 {[%clk 0:00:14]}  Kxd1 {[%clk 0:00:38]} 55. Ke6 {[%clk 0:00:14]}  Kc2 {[%clk 0:00:38]} 56. Kd6 {[%clk 0:00:15]}  Kb3 {[%clk 0:00:37]} 57. Kxc6 {[%clk 0:00:16]}  Kxb4 {[%clk 0:00:38]} 58. Kb6 {[%clk 0:00:16]}  a5 {[%clk 0:00:38]} 59. c6 {[%clk 0:00:17]}  a4 {[%clk 0:00:39]} 60. c7 {[%clk 0:00:18]}  a3 {[%clk 0:00:40]} 61. c8=Q {[%clk 0:00:18]}  a2 {[%clk 0:00:39]} 62. Qc1 {[%clk 0:00:17]}  Kb3 {[%clk 0:00:39]} 63. Qa1 {[%clk 0:00:16]} 1-0


[Site "https://www.chess.com"]

[Event "Titled Tuesday Blitz November 14 Early 2023"]
[White "Umarov, Sabir"]
[Black "Keleberda, Tymur"]
[WhiteFideId "14200538"]
[BlackFideId "14174294"]
[WhiteElo "2317"]
[BlackElo "2493"]
[Result "1-0"]
[Round "4"]
[TimeControl "180+1"]
[Date "2023.11.14"]
[WhiteClock "0:00:09"]
[BlackClock "0:00:06"]
[Board "175"]

1. e4 {[%clk 0:02:59]}  b6 {[%clk 0:02:51]} 2. d4 {[%clk 0:02:58]}  e6 {[%clk 0:02:50]} 3. Bd3 {[%clk 0:02:57]}  Bb7 {[%clk 0:02:50]} 4. Ne2 {[%clk 0:02:53]}  c5 {[%clk 0:02:49]} 5. c3 {[%clk 0:02:52]}  d6 {[%clk 0:02:45]} 6. O-O {[%clk 0:02:51]}  Nd7 {[%clk 0:02:45]} 7. f4 {[%clk 0:02:49]}  Ngf6 {[%clk 0:02:42]} 8. e5 {[%clk 0:02:48]}  Ne4 {[%clk 0:02:42]} 9. Nd2 {[%clk 0:02:45]}  Nxd2 {[%clk 0:02:33]} 10. Bxd2 {[%clk 0:02:46]}  g6 {[%clk 0:02:20]} 11. Be3 {[%clk 0:02:35]}  a6 {[%clk 0:01:55]} 12. a4 {[%clk 0:02:27]}  h5 {[%clk 0:01:51]} 13. b4 {[%clk 0:02:16]}  cxb4 {[%clk 0:01:43]} 14. cxb4 {[%clk 0:02:16]}  dxe5 {[%clk 0:01:42]} 15. fxe5 {[%clk 0:02:11]}  Bxb4 {[%clk 0:01:41]} 16. Nf4 {[%clk 0:01:57]}  O-O {[%clk 0:01:22]} 17. Nxh5 {[%clk 0:01:36]}  Qh4 {[%clk 0:01:01]} 18. Nf4 {[%clk 0:01:01]}  Rad8 {[%clk 0:00:39]} 19. Qb3 {[%clk 0:00:56]}  a5 {[%clk 0:00:37]} 20. Nxe6 {[%clk 0:00:47]}  Qg4 {[%clk 0:00:28]} 21. Nf4 {[%clk 0:00:40]}  g5 {[%clk 0:00:26]} 22. Be2 {[%clk 0:00:31]}  Qf5 {[%clk 0:00:20]} 23. Nh5 {[%clk 0:00:21]}  Qg6 {[%clk 0:00:18]} 24. Nf6+ {[%clk 0:00:19]}  Nxf6 {[%clk 0:00:17]} 25. Rxf6 {[%clk 0:00:20]}  Qg7 {[%clk 0:00:13]} 26. Rf5 {[%clk 0:00:16]}  Be4 {[%clk 0:00:13]} 27. Rxg5 {[%clk 0:00:15]}  Bg6 {[%clk 0:00:13]} 28. Bd3 {[%clk 0:00:12]}  Be7 {[%clk 0:00:13]} 29. Rg4 {[%clk 0:00:11]}  Rc8 {[%clk 0:00:11]} 30. Rxg6 {[%clk 0:00:11]}  Qxg6 {[%clk 0:00:11]} 31. Bxg6 {[%clk 0:00:11]}  Rc6 {[%clk 0:00:09]} 32. Be4 {[%clk 0:00:10]}  Rc7 {[%clk 0:00:10]} 33. Qd1 {[%clk 0:00:11]}  Rfc8 {[%clk 0:00:09]} 34. Qg4+ {[%clk 0:00:11]}  Kf8 {[%clk 0:00:09]} 35. Bh6+ {[%clk 0:00:11]}  Ke8 {[%clk 0:00:09]} 36. Bf5 {[%clk 0:00:12]}  Bf8 {[%clk 0:00:03]} 37. Qg8 {[%clk 0:00:11]}  Ke7 {[%clk 0:00:03]} 38. Bg5+ {[%clk 0:00:10]}  Ke8 {[%clk 0:00:02]} 39. e6 {[%clk 0:00:09]}  Rb8 {[%clk 0:00:01]} 40. exf7+ {[%clk 0:00:08]}  Rxf7 {[%clk 0:00:02]} 41. Bg6 {[%clk 0:00:08]}  Rb7 {[%clk 0:00:03]} 42. Rf1 {[%clk 0:00:08]}  Kd7 {[%clk 0:00:02]} 43. Rxf7+ {[%clk 0:00:08]}  Kd6 {[%clk 0:00:03]} 44. Rxb7 {[%clk 0:00:09]}  Kc6 {[%clk 0:00:03]} 45. Qxf8 {[%clk 0:00:09]}  Kxb7 {[%clk 0:00:03]} 46. Qe7+ {[%clk 0:00:09]}  Ka6 {[%clk 0:00:03]} 47. Bd3+ {[%clk 0:00:10]}  b5 {[%clk 0:00:04]} 48. Bxb5+ {[%clk 0:00:10]}  Kb6 {[%clk 0:00:05]} 49. Qd6+ {[%clk 0:00:09]}  Kb7 {[%clk 0:00:05]} 50. Qc6+ {[%clk 0:00:09]}  Ka7 {[%clk 0:00:05]} 51. Qc7+ {[%clk 0:00:09]}  Ka8 {[%clk 0:00:06]} 52. Bc6# {[%clk 0:00:09]} 1-0


[Site "https://www.chess.com"]